fUSD/lending_fUSD_20240923
["ID","MTS","AMOUNT","RATE_DAILY","PERIOD"]
[338999206,1727111432307,-250.0,0.0001124,2]
[338999207,1727111432316,-20.91847968,0.0001124,2]
[338999208,1727111432327,-1947.2218158,0.0001124,2]
[338999209,1727111432339,-2807.56799259,0.0001124,2]
[338999210,1727111432354,-805.22328561,0.0001124,2]
[338999211,1727111432366,-4118.27119374,0.0001124,2]
[338999212,1727111432377,-1336.34521765,0.0001124,2]
[338999213,1727111432389,-3377.03584135,0.0001124,2]
[338999214,1727111432401,-4207.88817068,0.0001124,2]
[338999215,1727111432445,-4949.97599785,0.0001124,2]
[338999216,1727111432504,-468.35778133,0.0001124,2]
[338999217,1727111432563,-16555.32279103,0.0001124,2]
[338999218,1727111432573,-178.97,0.00011271,2]
[338999219,1727111432582,-150.0,0.00011275,2]
[338999220,1727111432592,-526.18,0.00011292,2]
[338999221,1727111432601,-156.33,0.00011302,2]
[338999222,1727111432611,-172.03,0.00011314,2]
[338999223,1727111432620,-5836.28,0.00011325,2]
[338999224,1727111432629,-10378.04,0.00011325,2]
[338999225,1727111432638,-499.99,0.00011325,2]
[338999226,1727111432650,-250.0,0.00011333,2]
[338999227,1727111432659,-150.99,0.00011333,2]
[338999228,1727111432668,-150.0,0.00011366,2]
[338999229,1727111432678,-300.0,0.00011366,2]
[338999230,1727111432687,-23900.0,0.00011367,2]
[338999231,1727111432697,-299.99,0.00011367,2]
[338999232,1727111432706,-200.0,0.00011478,2]
[338999233,1727111432715,-150.0,0.00011564,2]
[338999234,1727111432724,-150.0,0.00011564,2]
[338999235,1727111432734,-150.0,0.00011564,2]
[338999236,1727111432743,-194.63955812,0.00011564,2]
[338999237,1727111432752,-150.0,0.00011564,2]
[338999238,1727111432762,-150.00000001,0.00011564,2]
[338999239,1727111432771,-1000.0,0.00011598,2]
[338999240,1727111432780,-313.43,0.00011643,2]
[338999241,1727111432789,-150.0,0.00011707,2]
[338999242,1727111432799,-150.0,0.00011779,2]
[338999243,1727111432808,-885.9,0.00011779,2]
[338999244,1727111432817,-290.46,0.00011784,2]
[338999245,1727111432826,-250.0,0.0001179,2]
[338999246,1727111432835,-150.0,0.0001185,2]
[338999247,1727111432844,-169.09,0.00011897,2]
[338999248,1727111432853,-646.31,0.00011904,2]
[338999249,1727111432862,-333.23,0.00011911,2]
[338999250,1727111432872,-150.0,0.00011993,2]
[338999251,1727111432881,-150.0,0.00011993,2]
[338999252,1727111432892,-193.12,0.00012005,2]
[338999253,1727111432906,-12619.09,0.00012087,2]
[338999254,1727111432915,-18538.17,0.00012087,2]
[338999255,1727111432925,-6689.12,0.00012087,2]
[338999256,1727111432935,-150.0,0.00012135,2]
[338999257,1727111432944,-150.0,0.00012207,2]
[338999258,1727111432954,-150.0,0.00012207,2]
[338999259,1727111432963,-358.1,0.0001226,2]
[338999260,1727111432975,-358.1,0.0001226,2]
[338999261,1727111432984,-358.1,0.0001226,2]
[338999262,1727111432993,-358.1,0.00012278,2]
[338999263,1727111433003,-410.97,0.00012278,2]
[338999264,1727111433012,-515.63,0.00012278,2]
[338999265,1727111433022,-150.0,0.00012278,2]
[338999266,1727111433032,-3116.0,0.00012344,2]
[338999267,1727111433041,-254.1,0.00012379,2]
[338999268,1727111433052,-150.0,0.00012421,2]
[338999269,1727111433062,-150.0,0.00012421,2]
[338999270,1727111433072,-255.0,0.00012423,2]
[338999271,1727111433082,-181.94,0.00012445,2]
[338999272,1727111433091,-420.0,0.00012485,2]
[338999273,1727111433101,-150.0,0.00012564,2]
[338999274,1727111433111,-715.64,0.00012589,2]
[338999275,1727111433120,-358.1,0.00012589,2]
[338999276,1727111433129,-150.0,0.00012635,2]
[338999277,1727111433139,-4483.762,0.00012698,2]
[338999278,1727111433151,-1000.0,0.00012698,2]
[338999279,1727111433161,-254.25335505,0.00012698,2]
[338999280,1727111433170,-150.0,0.00012707,2]
[338999281,1727111433180,-254.25335504,0.0001272,2]
[338999282,1727111433190,-383.35699788,0.00012735,2]
[338999283,1727111433200,-254.25335504,0.00012743,2]
[338999284,1727111433210,-235.76424226,0.0001275,2]
[338999285,1727111433219,-212.39098182,0.0001275,2]
[338999286,1727111433228,-157.27815319,0.0001275,2]
[338999287,1727111433238,-318.29041278,0.0001275,2]
[338999288,1727111433247,-2661.02007792,0.0001275,2]
[338999289,1727111433257,-254.25335504,0.00012765,2]
[338999290,1727111433266,-150.23271,0.00012769,2]
[338999291,1727111433275,-214.3327,0.00012776,2]
[338999292,1727111433285,-254.25335504,0.00012788,2]
[338999293,1727111433294,-25172.0817,0.00012794,2]
[338999294,1727111433303,-3256.7515,0.00012798,2]
[338999295,1727111433312,-1391.9473,0.00012798,2]
[338999296,1727111433322,-297.9512,0.00012798,2]
[338999297,1727111433332,-254.25335504,0.0001281,2]
[338999298,1727111433341,-311.27857499,0.00012815,2]
[338999299,1727111433350,-235.76424224,0.00012825,2]
[338999300,1727111433360,-2661.0200779,0.00012825,2]
[338999301,1727111433369,-254.25335504,0.00012833,2]
[338999302,1727111433379,-159.39020911,0.0001284,2]
[338999303,1727111433388,-155.48,0.0001284,2]
[338999304,1727111433398,-155.48,0.0001284,2]
[338999305,1727111433409,-155.48,0.0001284,2]
[338999306,1727111433418,-155.48,0.0001284,2]
[338999307,1727111433427,-155.48,0.0001284,2]
[338999308,1727111433436,-155.48,0.0001284,2]
[338999309,1727111433445,-155.48,0.0001284,2]
[338999310,1727111433454,-155.48,0.0001284,2]
[338999311,1727111433464,-155.48,0.0001284,2]
[338999312,1727111433472,-155.48,0.0001284,2]
[338999313,1727111433482,-500.0,0.00012849,2]
[338999314,1727111433491,-166.05367169,0.00012849,2]
[338999315,1727111433501,-500.0,0.00012849,2]
[338999316,1727111433511,-247.04194318,0.00012849,2]
[338999317,1727111433520,-500.0,0.00012849,2]
[338999318,1727111433530,-500.0,0.00012849,2]
[338999319,1727111433539,-500.0,0.00012849,2]
[338999320,1727111433548,-500.0,0.00012849,2]
[338999321,1727111433558,-500.0,0.00012849,2]
[338999322,1727111433567,-287.84635417,0.00012849,2]
[338999323,1727111433576,-260.60373138,0.00012849,2]
[338999324,1727111433586,-258.07109402,0.00012849,2]
[338999325,1727111433595,-291079.28903023,0.0001285,2]
[338999326,1727111433608,-2500.0,0.0001285,2]
[338999330,1727111438377,-1523.97756194,0.0001285,2]
[338999331,1727111438388,-69959.40566592,0.0001285,2]
[338999332,1727111438402,-22590.85096767,0.0001285,2]
[338999333,1727111438437,-612.18240239,0.0001285,2]
[338999334,1727111438448,-1292.78685607,0.0001285,2]
[338999335,1727111438459,-3962.55749776,0.0001285,2]
[338999336,1727111438471,-3110.01716113,0.0001285,2]
[338999337,1727111438482,-799.5914014,0.0001285,2]
[338999338,1727111438494,-1893.1272692,0.0001285,2]
[338999339,1727111438505,-659.75132017,0.0001285,2]
[338999340,1727111438552,-313.27,0.0001285,2]
[338999341,1727111438563,-254.99999,0.0001285,2]
[338999342,1727111438574,-433.76882013,0.0001285,2]
[338999343,1727111438608,-888.51999758,0.0001285,2]
[338999344,1727111438619,-541.2062645,0.0001285,2]
[338999345,1727111438631,-284.7715908,0.0001285,2]
[338999347,1727111438643,-56529.05701785,0.0001285,2]
[338999349,1727111438827,-475.24399367,0.0001285,2]
[338999351,1727111438839,-2757.58727979,0.0001285,2]
[338999353,1727111438849,-500.0,0.0001285,2]
[338999355,1727111438860,-187939.27379113,0.0001285,2]
[338999356,1727111438871,-5740.77834692,0.0001285,2]
[338999357,1727111438891,-914.15600849,0.0001285,2]
[338999358,1727111438908,-6009.765,0.0001285,2]
[338999359,1727111438919,-29561.64748557,0.0001285,2]
[338999360,1727111438930,-743.25219271,0.0001285,2]
[338999361,1727111438943,-597.24,0.0001285,2]
[338999362,1727111438954,-471.39155754,0.0001285,2]
[338999364,1727111438964,-765.41975306,0.0001285,2]
[338999365,1727111438976,-410.70213987,0.0001285,2]
[338999371,1727111440269,-28332.41412583,0.0001285,2]
[338999372,1727111440282,-1864.77512759,0.0001285,2]
[338999373,1727111440379,-255.42348,0.0001285,2]
[338999374,1727111440438,-530.86535505,0.0001285,2]
[338999375,1727111440494,-557509.55728749,0.0001285,2]
[338999376,1727111440506,-31093.1616788,0.0001285,2]
[338999400,1727111443414,-5350.19999999,0.0001285,2]
[338999401,1727111443470,-277.876872,0.0001285,2]
[338999402,1727111443482,-1504.9844153,0.0001285,2]
[338999403,1727111443493,-400.30481951,0.0001285,2]
[338999404,1727111443504,-500.0,0.0001285,2]
[338999405,1727111443527,-4675.74706937,0.0001285,2]
[338999406,1727111443538,-411.7493109,0.0001285,2]
[338999407,1727111443549,-1377.74172289,0.0001285,2]
[338999408,1727111443560,-2407.513137,0.0001285,2]
[338999413,1727111446253,-358.1,0.00012589,2]
[338999414,1727111446263,-1171.55936875,0.0001285,2]
[338999415,1727111446275,-6172.81784563,0.0001285,2]
[338999416,1727111446313,-353.49647707,0.0001285,2]
[338999417,1727111446325,-2479.97084612,0.0001285,2]
[338999418,1727111446338,-594.96858718,0.0001285,2]
[338999423,1727111447103,-39196.10025195,0.0001285,2]
[338999424,1727111447115,-1741.01490028,0.0001285,2]
[338999425,1727111447126,-5651.79132101,0.0001285,2]
[338999426,1727111447137,-4666.27831828,0.0001285,2]
[338999427,1727111447147,-432.5,0.0001285,2]
[338999428,1727111447159,-717.12394233,0.0001285,2]
[338999429,1727111447170,-1900.729368,0.0001285,2]
[338999430,1727111447218,-21737.36098335,0.0001285,2]
[338999431,1727111447228,-666.49966,0.0001285,2]
[338999432,1727111447239,-31264.86811485,0.0001285,2]
[338999433,1727111447249,-1458.83968283,0.0001285,2]
[338999434,1727111447259,-409.14193754,0.0001285,2]
[338999435,1727111447270,-1834.85362429,0.0001285,2]
[338999436,1727111447280,-6882.92088896,0.0001285,2]
[338999437,1727111447291,-506.864174,0.0001285,2]
[338999438,1727111447302,-383.87296915,0.0001285,2]
[338999439,1727111447314,-3077.64182638,0.0001285,2]
[338999440,1727111447325,-295.25514135,0.0001285,2]
[338999441,1727111544469,623.87,0.0001004,2]
[338999443,1727111614137,250.0,0.00010959,2]
[338999447,1727112329132,1040.38793021,0.000101,2]
[338999449,1727112348269,179.49,0.00010959,2]
[338999450,1727112354536,600.0,6.94e-05,2]
[338999459,1727112426916,610.81,9.241e-05,2]
[338999480,1727112513369,2948.02754917,0.00010998,2]
[338999481,1727112525063,1050.0,0.00011,2]
[338999535,1727112607231,176.44679914,0.00011058,2]
[338999565,1727112631486,-250.0,0.00011158,2]
[338999568,1727112631496,-500.0,0.00011186,2]
[338999570,1727112631505,-250.0,0.00011188,2]
[338999573,1727112631513,-255.12,0.00011194,2]
[338999576,1727112631526,-1412.14945512,0.00011194,2]
[338999577,1727112631538,-664.57727663,0.00011194,2]
[338999578,1727112631551,-562.21440665,0.00011194,2]
[338999579,1727112631562,-2498.3477175,0.00011194,2]
[338999580,1727112631574,-752.26271362,0.00011194,2]
[338999581,1727112631584,-300.0,0.00011194,2]
[338999582,1727112631596,-829.14541119,0.00011195,2]
[338999583,1727112631607,-2455.73458881,0.00011195,2]
[338999584,1727112631618,-614.93252374,0.00011219,2]
[338999585,1727112631630,-983.93,0.00011219,2]
[338999586,1727112631644,-5221.07153573,0.00011219,2]
[338999587,1727112631657,-17080.06594053,0.00011219,2]
[338999588,1727112631668,-465.81,0.00011226,2]
[338999589,1727112631680,-3630.77,0.0001127,2]
[338999590,1727112631690,-804.32,0.00011271,2]
[338999591,1727112631700,-600.86,0.00011271,2]
[338999592,1727112631714,-76.6332629,0.00011271,2]
[338999593,1727112631728,-170.2267371,0.00011271,2]
[338999594,1727112631738,-200.0,0.00011273,2]
[338999595,1727112631750,-150.0,0.00011281,2]
[338999596,1727112631759,-301.0,0.00011282,2]
[338999597,1727112631771,-2526.42,0.00011282,2]
[338999598,1727112631781,-150.99,0.00011282,2]
[338999599,1727112631790,-499.99,0.00011282,2]
[338999600,1727112631800,-156.39,0.00011282,2]
[338999601,1727112631809,-1000.0,0.00011294,2]
[338999602,1727112631818,-150.0,0.00011296,2]
[338999603,1727112631828,-90.36445347,0.0001131,2]
[338999604,1727112631839,-159.63554653,0.0001131,2]
[338999605,1727112631849,-169.92,0.00011328,2]
[338999606,1727112631859,-463.79445347,0.00011329,2]
[338999607,1727112631871,-36.20554653,0.00011329,2]
[338999608,1727112631881,-610.81,0.00011505,2]
[338999609,1727112631893,-502.83,0.00011703,2]
[338999610,1727112631903,-1689.48,0.00011808,2]
[338999611,1727112631914,-358.1,0.00011978,2]
[338999612,1727112631924,-358.1,0.00011978,2]
[338999613,1727112631935,-358.1,0.00011978,2]
[338999614,1727112631947,-358.1,0.00011978,2]
[338999615,1727112631957,-400.0,0.00012,4]
[338999616,1727112631967,-1663.49931521,0.00012031,2]
[338999617,1727112631977,-358.1,0.00012078,2]
[338999618,1727112631986,-900.0,0.000121,4]
[338999619,1727112631995,-753.56,0.00012141,2]
[338999620,1727112632005,-358.1,0.00012178,2]
[338999621,1727112632014,-1300.0,0.000122,4]
[338999622,1727112632024,-358.1,0.00012264,2]
[338999623,1727112632033,-357.37,0.00012264,2]
[338999624,1727112632042,-358.1,0.00012278,2]
[338999625,1727112632051,-358.1,0.00012278,2]
[338999626,1727112632060,-420.0,0.00012299,2]
[338999627,1727112632069,-1800.0,0.000123,4]
[338999628,1727112632077,-422.61,0.00012329,2]
[338999629,1727112632087,-383.35699789,0.00012335,2]
[338999630,1727112632096,-255.0,0.00012342,2]
[338999631,1727112632105,-358.1,0.000124,2]
[338999632,1727112632114,-2200.0,0.000124,4]
[338999633,1727112632123,-167.13,0.00012445,2]
[338999634,1727112632133,-358.1,0.00012466,2]
[338999635,1727112632142,-358.1,0.00012466,2]
[338999636,1727112632151,-400.0,0.000125,4]
[338999637,1727112632161,-188.73,0.00012554,2]
[338999638,1727112632170,-428.27,0.00012575,2]
[338999639,1727112632180,-358.1,0.00012592,2]
[338999640,1727112632189,-358.1,0.00012592,2]
[338999641,1727112632198,-400.0,0.000126,4]
[338999642,1727112632208,-150.0,0.00012603,2]
[338999643,1727112632217,-516.40602484,0.0001265,2]
[338999644,1727112632226,-160.02005506,0.0001265,2]
[338999645,1727112632235,-322.33920032,0.0001265,2]
[338999646,1727112632244,-151.137,0.0001265,2]
[338999647,1727112632253,-1168.1644,0.0001265,2]
[338999648,1727112632262,-1089.1729,0.0001265,2]
[338999649,1727112632272,-1000.0,0.0001265,2]
[338999650,1727112632282,-516.40602478,0.00012678,2]
[338999651,1727112632291,-301.0,0.00012692,2]
[338999652,1727112632301,-400.0,0.000127,4]
[338999653,1727112632310,-1000.0,0.00012705,2]
[338999654,1727112632319,-516.40602478,0.00012706,2]
[338999655,1727112632328,-516.40602478,0.00012733,2]
[338999656,1727112632338,-247.06014866,0.00012749,2]
[338999657,1727112632347,-184.45222375,0.0001275,2]
[338999658,1727112632357,-204.70241534,0.0001275,2]
[338999659,1727112632366,-172.8445,0.0001275,2]
[338999660,1727112632377,-15400.6063,0.0001275,2]
[338999661,1727112632386,-1000.0,0.0001275,2]
[338999662,1727112632397,-4294.9443,0.0001275,2]
[338999663,1727112632407,-100000.0,0.0001275,2]
[338999664,1727112632417,-1909.6514,0.0001275,2]
[338999665,1727112632427,-245000.0,0.0001275,2]
[338999666,1727112632437,-1620.2565,0.0001275,2]
[338999667,1727112632446,-4513.4936,0.0001275,2]
[338999668,1727112632457,-4986.3405,0.0001275,2]
[338999669,1727112632468,-516.40602478,0.00012761,2]
[338999670,1727112632477,-199.40079403,0.00012773,2]
[338999671,1727112632488,-160.02005504,0.00012775,2]
[338999672,1727112632500,-184.45222371,0.00012788,2]
[338999673,1727112632510,-516.40602478,0.00012789,2]
[338999674,1727112632521,-716.12,0.000128,2]
[338999675,1727112632530,-400.0,0.000128,4]
[338999676,1727112632539,-516.40602478,0.00012817,2]
[338999677,1727112632551,-184.45222371,0.00012825,2]
[338999678,1727112632561,-153.08,0.0001284,2]
[338999679,1727112632571,-153.08,0.0001284,2]
[338999680,1727112632581,-153.08,0.0001284,2]
[338999681,1727112632590,-153.08,0.0001284,2]
[338999682,1727112632599,-153.08,0.0001284,2]
[338999683,1727112632608,-153.08,0.0001284,2]
[338999684,1727112632617,-153.08,0.0001284,2]
[338999685,1727112632626,-124.04036051,0.0001284,2]
[338999686,1727112632642,-29.03963949,0.0001284,2]
[338999687,1727112632651,-153.08,0.0001284,2]
[338999688,1727112632661,-516.40602478,0.00012844,2]
[338999689,1727112632672,-85.79648463,0.0001285,2]
[338999690,1727112632684,-99.1533921,0.0001285,2]
[338999691,1727112632695,-2633.31728638,0.0001285,2]
[338999692,1727112632707,-549.52917014,0.0001285,2]
[338999693,1727112632720,-1126.7988808,0.0001285,2]
[338999694,1727112632732,-3085.8322319,0.0001285,2]
[338999695,1727112632748,-295.33202042,0.0001285,2]
[338999696,1727112632758,-1974.18309637,0.0001285,2]
[338999697,1727112632770,-750.26546194,0.0001285,2]
[338999698,1727112632781,-1266.60175907,0.0001285,2]
[338999699,1727112632792,-633.39617763,0.0001285,2]
[338999700,1727112632802,-575.41365747,0.0001285,2]
[338999701,1727112632813,-3008.65903677,0.0001285,2]
[338999702,1727112632824,-3186.70346721,0.0001285,2]
[338999703,1727112632835,-9367.06642511,0.0001285,2]
[338999704,1727112632845,-7171.924979,0.0001285,2]
[338999705,1727112632856,-5959.51491428,0.0001285,2]
[338999706,1727112632867,-2045.75766083,0.0001285,2]
[338999707,1727112632877,-5945.23256961,0.0001285,2]
[338999708,1727112632888,-737.5985368,0.0001285,2]
[338999709,1727112632900,-351.89855854,0.0001285,2]
[338999713,1727112637604,-155.92795312,0.0001275,2]
[338999714,1727112637614,-230.48276771,0.0001285,2]
[338999715,1727112637628,-1850.0,0.0001285,2]
[338999716,1727112637639,-36923.19099976,0.0001285,2]
[338999717,1727112637651,-645.49882476,0.0001285,2]
[338999718,1727112637668,-2397.52493888,0.0001285,2]
[338999719,1727112637680,-1556.46944238,0.0001285,2]
[338999720,1727112637692,-1514.63437236,0.0001285,2]
[338999721,1727112637707,-1765.0,0.0001285,2]
[338999722,1727112637720,-1003.44349113,0.0001285,2]
[338999723,1727112637734,-348.23005832,0.0001285,2]
[338999724,1727112637746,-929.30964568,0.0001285,2]
[338999725,1727112637757,-451.57864314,0.0001285,2]
[338999726,1727112637768,-1372.2,0.0001285,2]
[338999727,1727112637781,-452.64,0.0001285,2]
[338999728,1727112637903,-789749.27545922,0.0001285,2]
[338999729,1727112637915,-3181.070885,0.0001285,2]
[338999730,1727112637927,-1921.952907,0.0001285,2]
[338999731,1727112637940,-880.12,0.0001285,2]
[338999732,1727112637953,-941.43031319,0.0001285,2]
[338999733,1727112637966,-1109.26027776,0.0001285,2]
[338999734,1727112637978,-4936.4916975,0.0001285,2]
[338999736,1727112637989,-308.42346545,0.0001285,2]
[338999738,1727112638001,-1307.82579178,0.0001285,2]
[338999740,1727112638011,-1000.0,0.0001285,2]
[338999742,1727112638020,-79851.38143866,0.0001285,2]
[338999744,1727112638032,-14748.76972363,0.0001285,2]
[338999746,1727112638044,-6756.10214935,0.0001285,2]
[338999749,1727112638056,-83998.64254733,0.0001285,2]
[338999859,1727112639401,-985.8689958,0.0001285,2]
[338999860,1727112639413,-384.644286,0.0001285,2]
[338999861,1727112639424,-4503.46066958,0.0001285,2]
[338999862,1727112639435,-331.44623355,0.0001285,2]
[338999863,1727112639446,-489.17891229,0.0001285,2]
[338999864,1727112639470,-9876.60459717,0.0001285,2]
[338999865,1727112639481,-511.70455756,0.0001285,2]
[338999866,1727112639493,-31942.32762992,0.0001285,2]
[338999867,1727112639503,-398.62629411,0.0001285,2]
[338999868,1727112639515,-1601.7188943,0.0001285,2]
[338999869,1727112639528,-9894.76560632,0.0001285,2]
[338999870,1727112639539,-15122.18966287,0.0001285,2]
[338999871,1727112639552,-8602.52214844,0.0001285,2]
[338999872,1727112639565,-156894.73642967,0.0001285,2]
[338999873,1727112639581,-11809.42168032,0.0001285,2]
[338999874,1727112639595,-323.21934277,0.0001285,2]
[338999875,1727112639606,-8289.3,0.0001285,2]
[338999876,1727112639620,-20973.64934183,0.0001285,2]
[338999877,1727112639634,-1637.29710056,0.0001285,2]
[338999878,1727112639647,-982.24203917,0.0001285,2]
[338999879,1727112639659,-662.68309162,0.0001285,2]
[338999880,1727112639672,-796.28249317,0.0001285,2]
[338999881,1727112639684,-2400.47475159,0.0001285,2]
[338999882,1727112639695,-616.89321857,0.0001285,2]
[338999883,1727112639705,-408.08078688,0.0001285,2]
[338999884,1727112639716,-1986.15335335,0.0001285,2]
[338999885,1727112639727,-818.06656972,0.0001285,2]
[338999886,1727112639739,-633.29396919,0.0001285,2]
[338999887,1727112639749,-927.22751103,0.0001285,2]
[338999888,1727112639762,-714.13926867,0.0001285,2]
[338999889,1727112639773,-1001.60210072,0.0001285,2]
[338999890,1727112639786,-558.89350208,0.0001285,2]
[338999891,1727112639797,-540.25407652,0.0001285,2]
[338999892,1727112639808,-13563.56734335,0.0001285,2]
[338999893,1727112639820,-736.88124353,0.0001285,2]
[338999894,1727112639831,-2614.18997051,0.0001285,2]
[338999895,1727112639843,-2586.02150144,0.0001285,2]
[338999896,1727112639856,-303.35499935,0.0001285,2]
[338999897,1727112639868,-745565.1906637,0.0001285,2]
[338999898,1727112639880,-215039.92691491,0.0001285,2]
[338999899,1727112639892,-344475.0874631,0.0001285,2]
[338999900,1727112639905,-1217.27,0.0001285,2]
[338999901,1727112639918,-1370.37733886,0.0001285,2]
[338999902,1727112639931,-681.43362743,0.0001285,2]
[338999903,1727112639942,-1048.582763,0.0001285,2]
[338999904,1727112639953,-846.52210567,0.0001285,2]
[338999914,1727112642541,-737.99988251,0.0001265,2]
[338999919,1727112642600,-944.2392205,0.0001265,2]
[338999920,1727112642610,-10988.3773015,0.0001265,2]
[338999921,1727112642659,-409.34192602,0.0001265,2]
[338999922,1727112642670,-1598.31428799,0.0001265,2]
[338999923,1727112642681,-735.896,0.0001265,2]
[338999924,1727112642691,-1113.8701207,0.0001265,2]
[338999925,1727112642702,-2387.83819773,0.0001265,2]
[338999926,1727112642713,-1323.34911343,0.0001265,2]
[338999927,1727112642724,-279.55779706,0.0001265,2]
[338999928,1727112642892,-677.73625,0.0001265,2]
[338999929,1727112642903,-9843.08891014,0.0001265,2]
[338999930,1727112642914,-1838.78,0.0001265,2]
[338999931,1727112642925,-1789.29207492,0.0001265,2]
[338999932,1727112642935,-5400.0,0.0001265,2]
[338999933,1727112642946,-365.89805445,0.0001265,2]
[338999934,1727112642957,-7489.85810752,0.0001265,2]
[338999935,1727112642968,-298.93134934,0.0001265,2]
[338999936,1727112642978,-1402.05940619,0.0001265,2]
[338999937,1727112642988,-25038.45117391,0.0001285,2]
[338999938,1727112642999,-20210.40040686,0.0001285,2]
[338999939,1727112643018,-7488.03175676,0.0001285,2]
[338999946,1727112645447,-1269.0,0.0001285,2]
[338999947,1727112645458,-2133.07562019,0.0001285,2]
[338999948,1727112645469,-493.70431179,0.0001285,2]
[338999949,1727112645481,-17189.36167256,0.0001285,2]
[338999950,1727112645492,-805.58226419,0.0001285,2]
[338999951,1727112645512,-438.217861,0.0001285,2]
[338999952,1727112645524,-675.75650086,0.0001285,2]
[338999953,1727112645535,-12210.17717845,0.0001285,2]
[338999954,1727112645549,-10152.93128189,0.0001285,2]
[338999955,1727112645560,-428.95750769,0.0001285,2]
[338999956,1727112645572,-34567.01136628,0.0001285,2]
[338999957,1727112645583,-43150.4207702,0.0001285,2]
[338999958,1727112645595,-83844.72194806,0.0001285,2]
[338999959,1727112645606,-3972.33381361,0.0001285,2]
[338999960,1727112645619,-4050.58204498,0.0001285,2]
[338999961,1727112645630,-10391.97917367,0.0001285,2]
[338999962,1727112645641,-117698.75954279,0.0001285,2]
[338999963,1727112645653,-10164.3352765,0.0001285,2]
[338999964,1727112645669,-2283.42218229,0.0001285,2]
[338999965,1727112645681,-36801.39333077,0.0001285,2]
[338999966,1727112645699,-8888.09487666,0.0001285,2]
[338999967,1727112645711,-1401.42201098,0.0001285,2]
[338999968,1727112645723,-626.08111507,0.0001285,2]
[338999969,1727112645734,-376.56963824,0.0001285,2]
[338999970,1727112645745,-2615.29685025,0.0001285,2]
[338999971,1727112645756,-2481.06096,0.0001285,2]
[338999972,1727112645767,-3225.84215097,0.0001285,2]
[338999973,1727112645778,-6278.67110128,0.0001285,2]
[338999974,1727112645790,-2420.86061955,0.0001285,2]
[338999976,1727112645803,-432.00902886,0.0001285,2]
[338999978,1727112645814,-4369.62043342,0.0001285,2]
[338999980,1727112645825,-274.50931672,0.0001285,2]
[338999981,1727112645837,-544.09853941,0.0001285,2]
[338999982,1727112645849,-879.9737992,0.0001285,2]
[338999983,1727112645860,-3690.46625153,0.0001285,2]
[338999984,1727112645872,-635.75,0.0001285,2]
[338999985,1727112645883,-946.21399857,0.0001285,2]
[338999986,1727112645896,-873.74712415,0.0001285,2]
[338999987,1727112645907,-3922.06321715,0.0001285,2]
[338999988,1727112645919,-618.3903605,0.0001285,2]
[338999989,1727112645930,-550.0,0.0001285,2]
[338999990,1727112645942,-587.27863507,0.0001285,2]
[338999991,1727112645955,-400.0,0.0001285,2]
[338999992,1727112645966,-674.79429573,0.0001285,2]
[338999993,1727112645977,-557.8322401,0.0001285,2]
[338999994,1727112645988,-685.11662691,0.0001285,2]
[338999995,1727112645999,-481.61185414,0.0001285,2]
[338999996,1727112646010,-95603.46368482,0.0001285,2]
[338999997,1727112646022,-1415.44956061,0.0001285,2]
[338999998,1727112646033,-312.64,0.0001285,2]
[338999999,1727112646335,-673.53625107,0.0001285,2]
[339000000,1727112646347,-6491.30359102,0.0001285,2]
[339000001,1727112646359,-8087.42770433,0.0001285,2]
[339000002,1727112646371,-15651.80138247,0.0001285,2]
[339000003,1727112646382,-5022.72191446,0.0001285,2]
[339000006,1727113001173,223.52,0.00010959,2]
[339000007,1727113030413,591.64,9.931e-05,2]
[339000008,1727113608747,601.87,9.737e-05,2]
[339000048,1727113831695,-1000.0,0.00011441,2]
[339000049,1727113831704,-708.85916327,0.00011464,2]
[339000050,1727113831713,-191.14083673,0.0001148,2]
[339000051,1727113831724,-517.71832653,0.0001148,2]
[339000052,1727113831733,-250.0,0.00011486,2]
[339000053,1727113831742,-908.40619862,0.00011495,2]
[339000054,1727113831753,-153.62380138,0.00011495,2]
[339000055,1727113831763,-445.62,0.0001153,2]